[Event "MCC Labor Day Schev 2024"]
[Site "New York"]
[Date "2024.09.03"]
[Round "9.1"]
[White "Shangin, Lev"]
[Black "Sarkar, Justin"]
[Result "0-1"]
[ECO "E68"]
[WhiteElo "1974"]
[BlackElo "2276"]
[Annotator "TA"]
[PlyCount "82"]
[EventDate "2024.08.28"]
[EventType "schev"]
[EventCountry "USA"]
[SourceTitle "playchess.com"]
[Source "ChessBase"]
[SourceQuality "1"]
[TimeControl "5400+30"]

{[%evp 17,82,18,60,0,0,0,0,-14,-3,-14,-13,-11,-4,-10,-18,-66,-66,-70,-62,-110,-101,-136,-132,-127,-129,-133,-135,-131,-123,-148,-108,-108,-116,-131,-144,-134,-49,-41,-39,-31,-35,-55,-45,-42,-31,-54,0,0,0,0,0,-134,-3,-8,0,-141,-141,-141,-141,-424,-430,-29970,-29973,-29973,-29974,-29976,-29976]} 1. d4 {[%emt 0:00:25]} Nf6 {[%emt 0:02:03]} 2. c4 {[%emt 0:00:54]} d6 {[%emt 0:00:47]} 3. Nc3 {[%emt 0:01:54]} Nbd7 {[%emt 0:00:19]} 4. g3 {[%emt 0:02:13]} e5 {[%emt 0:01:15]} 5. Bg2 {[%emt 0:03:00]} g6 {[%emt 0:07:51]} 6. Nf3 {[%emt 0:03:22]} Bg7 {[%emt 0:00:15]} 7. O-O {[%emt 0:03:52]} O-O {[%emt 0:00:07]} 8. e4 {[%emt 0:00:41]} a6 {[%emt 0:01:33]} 9. Re1 {[%emt 0:02:27]} Rb8 {[%emt 0:00:30]} 10. Bf1 {[%emt 0:04:04]} (10. d5 $14) 10... exd4 $11 {[%emt 0:09:11]} 11. Nxd4 {[%emt 0:00:11]} Ne5 {[%emt 0:00:08]} 12. h3 {[%emt 0:06:11] Against Bg4. The position is equal.} c5 {[%emt 0:02:04]} 13. Nf3 {[%emt 0:03:13]} Nxf3+ {[%emt 0:14:00]} 14. Qxf3 {[%emt 0:00:02]} Nd7 {[%emt 0:57:27]} 15. Qd1 {[%emt 0:09:37]} Ne5 {[%emt 0:00:00]} 16. Be3 {[%emt 0:56:24]} (16. a4 $11 {might be stronger.}) 16... Be6 $15 {[%emt 0:00:00]} 17. Bf4 {[%emt 0:00:00]} Qd7 {[%emt 0:00:00]} 18. Kh2 {[%emt 0:00:00]} (18. g4 $15) 18... Bxc4 $17 {[%emt 0:00:00] Black is more active.} (18... Nxc4 19. Bxc4 Bxc4 20. Bxd6 $16) 19. Bxe5 {[%emt 0:00:00]} Bxf1 {[%emt 0:00:00]} 20. Rxf1 {[%emt 0:00:00]} Bxe5 {[%emt 0:00:00]} 21. Qd5 {[%emt 0:00:00]} Qe6 {[%emt 0:00:00]} 22. Rad1 {[%emt 0:00:00]} Rfe8 {[%emt 0:00:00]} 23. Rfe1 {[%emt 0:00:00]} Qxd5 {[%emt 0:00:00]} 24. Rxd5 {[%emt 0:00:00]} f5 {[%emt 0:00:00]} 25. f4 {[%emt 0:00:00]} Bxc3 {[%emt 0:00:00]} 26. bxc3 {[%emt 0:00:00]} fxe4 {[%emt 0:00:00]} ({Don't take} 26... Rxe4 27. Rxe4 fxe4 28. Rxd6 $17) ({Better is} 26... Rbd8 $1 $17 27. Kg2 Rxe4 (27... fxe4 28. Kf2 $17) 28. Rxe4 fxe4) 27. Rxd6 $15 {[%emt 0:00:00]} Rbd8 {[%emt 0:00:00]} 28. Rxe4 $1 {[%emt 0:00:00]} Rxd6 {[%emt 0:00:00]} 29. Rxe8+ {[%emt 0:00:00][%mdl 4096] Endgame. KR-KR} Kf7 {[%emt 0:00:00]} 30. Rc8 {[%emt 0:00:00]} Rd2+ {[%emt 0:00:00]} 31. Kg1 {[%emt 0:00:00]} b5 {[%emt 0:00:00]} (31... Rxa2 32. Rc7+ Ke6 33. Rxb7 $11) ({Black should try} 31... Ke6 $15) 32. Rxc5 $11 {[%emt 0:00:00]} Rxa2 {[%emt 0:00:00]} 33. Rc7+ {[%emt 0:00:00]} Kg8 {[%emt 0:07:06]} 34. Ra7 {[%emt 0:00:00]} (34. Rc8+ $11 Kg7 35. Rc7+ Kg8 36. Kf1) 34... h5 {[%emt 0:00:35]} (34... a5 $17 {Black wants to play ...a4.} 35. Kf1 a4) 35. g4 {[%emt 0:00:00]} h4 {[%emt 0:01:24]} 36. f5 {[%emt 0:00:00]} (36. Rb7 $11 {keeps the balance.}) 36... gxf5 $17 {[%emt 0:00:04]} 37. gxf5 {[%emt 0:00:00] [#]} a5 $1 {[%emt 0:00:10] White must now prevent ...a4.} 38. Rb7 $2 {[%emt 0:00:00][%mdl 8192] [#] White does not recover from this.} (38. Kf1 $17) 38... Rb2 $1 $19 {[%emt 0:00:09]} 39. c4 {[%emt 0:00:00]} (39. Ra7 $19 a4 40. Kf1) 39... a4 {[%emt 0:00:20] Black mates.} 40. Ra7 {[%emt 0:00:00]} bxc4 {[%emt 0:00:16]} 41. Rxa4 {[%emt 0:00:00]} c3 {[%emt 0:03:26] Weighted Error Value: White=0.60/Black=0.15 (very precise) .  Loses game:     	White=1     	---        Mistake:       	White=5     	Black=3      Inaccurate:     	White=1     	---        OK:         	White=3     	Black=8      Best:        	White=3     	Black=6      Strong:       	White=1     	Black=2} 0-1

[Event "MCC Labor Day Schev 2024"]
[Site "New York"]
[Date "2024.09.02"]
[Round "9.2"]
[White "Gaw, Chloe"]
[Black "Colas, Joshua"]
[Result "0-1"]
[ECO "D31"]
[WhiteElo "1981"]
[BlackElo "2224"]
[Annotator "TA"]
[PlyCount "74"]
[EventDate "2024.08.28"]
[EventType "schev"]
[EventCountry "USA"]
[SourceTitle "playchess.com"]
[Source "ChessBase"]
[SourceQuality "1"]
[TimeControl "5400+30"]

{[%evp 9,74,-23,12,12,29,30,28,14,14,16,27,0,4,0,3,3,4,0,0,7,14,0,31,25,37,23,91,99,71,29,52,50,39,30,40,31,76,0,0,0,0,-7,0,-66,-54,-47,-60,-56,-54,-71,-62,-95,-119,-431,-424,-1564,-1364,-2006,-2126,-2087,-1874,-2501,-2902,-29987,-29988,-29990,-29991]} 1. d4 {[%emt 0:00:05]} d5 {[%emt 0:04:01]} 2. c4 {[%emt 0:00:03]} e6 {[%emt 0:00:25]} 3. Nc3 {[%emt 0:00:06]} a6 {[%emt 0:00:37]} 4. cxd5 {[%emt 0:00:26]} exd5 {[%emt 0:00:02]} 5. Qc2 {[%emt 0:00:36]} c6 {[%emt 0:01:01]} 6. Bf4 {[%emt 0:03:17]} Bd6 {[%emt 0:00:02]} 7. Bxd6 {[%emt 0:00:32]} Qxd6 {[%emt 0:00:03]} 8. Nf3 {[%emt 0:00:43] White has an edge.} Ne7 {[%emt 0:01:00]} 9. e3 {[%emt 0:00:35]} Bf5 {[%emt 0:00:24]} 10. Bd3 {[%emt 0:02:29]} Bxd3 {[%emt 0:01:08]} 11. Qxd3 {[%emt 0:00:03]} Nd7 {[%emt 0:00:16]} 12. O-O {[%emt 0:00:47]} O-O {[%emt 0:00:51]} 13. h3 {[%emt 0:01:59]} a5 {[%emt 0:00:34]} 14. Rac1 {[%emt 0:03:49]} a4 {[%emt 0:01:41]} 15. Qc2 {[%emt 0:03:42]} b5 {[%emt 0:00:24]} 16. Ne2 {[%emt 0:05:39]} Rac8 {[%emt 0:03:15]} 17. Nf4 {[%emt 0:05:33]} f5 {[%emt 0:01:38]} (17... a3 $11 {keeps the balance.}) 18. Nd3 $16 {[%emt 0:02:54]} Ng6 {[%emt 0:00:28]} 19. Nc5 {[%emt 0:07:48]} f4 {[%emt 0:02:33]} 20. Nxd7 {[%emt 0:05:51]} Qxd7 {[%emt 0:00:10]} 21. e4 {[%emt 0:04:06]} dxe4 {[%emt 0:00:43]} 22. Qxe4 {[%emt 0:00:04]} Rfe8 {[%emt 0:00:19]} 23. Ne5 {[%emt 0:03:46]} ({Better is} 23. Qb1 $16) 23... Nxe5 {[%emt 0:01:48]} 24. dxe5 {[%emt 0:00:05][%cal Of1d1]} Qe6 {[%emt 0:00:02]} 25. Qxf4 {[%emt 0:06:18]} Qxa2 {[%emt 0:00:47]} 26. Qd4 {[%emt 0:02:00]} (26. Rc2 $11) 26... Qd5 $15 {[%emt 0:02:14]} 27. Qxd5+ {[%emt 0:12:52]} cxd5 {[%emt 0:00:24][%mdl 4096] Endgame. KRR-KRR} 28. f4 {[%emt 0:00:15]} Kf7 {[%emt 0:01:56]} 29. Kf2 {[%emt 0:03:46]} Rc4 {[%emt 0:02:38]} 30. Rxc4 {[%emt 0:01:32]} dxc4 {[%emt 0:01:22] KR-KR} 31. Rd1 $2 {[%emt 0:00:45][%mdl 8192] Now White is beyond hope.} (31. Ke2 $17 {is more resistant.}) 31... b4 $19 {[%emt 0:00:17] Hoping for ...c3.} 32. Rc1 {[%emt 0:09:03] [#]} (32. Ke3 $142 c3 33. bxc3) 32... c3 $1 {[%emt 0:00:37][%mdl 512]} 33. bxc3 {[%emt 0:04:00]} (33. Rb1 c2) 33... b3 {[%emt 0:00:10] And now ...b2 would win.} 34. Rb1 {[%emt 0:05:54]} Rb8 {[%emt 0:00:09]} 35. Ke3 {[%emt 0:00:39]} a3 {[%emt 0:00:07] ( -> ...b2)} 36. Kd2 {[%emt 0:01:32]} a2 {[%emt 0:00:09]} 37. Kc1 {[%emt 0:00:37] [#]} b2+ $1 {[%emt 1:14:45][%mdl 512] Weighted Error Value: White=1.00/Black=0.10 (very precise) .  Loses game:     	White=1     	---        Mistake:       	White=3     	Black=1      Inaccurate:     	White=3     	Black=2      OK:         	White=8     	Black=5      Best:        	White=1     	Black=3      Brilliant:      	---       	Black=1} 0-1

[Event "MCC Labor Day Schev 2024"]
[Site "New York"]
[Date "2024.09.02"]
[Round "9.3"]
[White "Stern, Kevin B"]
[Black "Rohde, Michael"]
[Result "0-1"]
[ECO "A36"]
[WhiteElo "1920"]
[BlackElo "2280"]
[Annotator "RC"]
[PlyCount "62"]
[EventDate "2024.08.28"]
[EventType "schev"]
[EventCountry "USA"]
[SourceTitle "playchess.com"]
[Source "ChessBase"]
[SourceQuality "1"]
[TimeControl "5400+30"]

1. c4 {[%emt 0:00:04]} c5 {[%emt 0:00:15]} 2. g3 {[%emt 0:00:05]} g6 {[%emt 0:00:07]} 3. Bg2 {[%emt 0:00:05]} Bg7 {[%emt 0:00:04]} 4. Nc3 {[%emt 0:00:06]} Nc6 {[%emt 0:00:04]} 5. d3 {[%emt 0:00:04]} d6 {[%emt 0:00:29]} 6. Qd2 {[%emt 0:00:05]} e5 {[%emt 0:00:44]} 7. b3 {[%emt 0:00:37]} Nge7 {[%emt 0:00:13]} 8. Bb2 {[%emt 0:00:03]} Rb8 {[%emt 0:01:48]} 9. e3 {[%emt 0:00:26]} a6 {[%emt 0:00:27]} 10. Nge2 {[%emt 0:01:09]} O-O {[%emt 0:00:12]} 11. O-O {[%emt 0:00:06]} b5 {[%emt 0:00:18]} 12. Nd5 {[%emt 0:01:56]} Nxd5 {[%emt 0:04:17]} 13. cxd5 {[%emt 0:00:51]} Ne7 {[%emt 0:00:05]} 14. d4 {[%emt 0:00:24]} cxd4 {[%emt 0:00:33]} 15. exd4 {[%emt 0:00:12]} Bb7 {[%emt 0:01:37]} 16. dxe5 {[%emt 0:01:00]} dxe5 {[%emt 0:00:15]} 17. Rfd1 {[%emt 0:00:38]} Nf5 {[%emt 0:00:22]} 18. Nc3 {[%emt 0:10:43]} Re8 {[%emt 0:01:01]} 19. h4 {[%emt 0:06:14]} Nd4 {[%emt 0:03:59]} 20. Rac1 {[%emt 0:07:30]} Rc8 {[%emt 0:02:03]} 21. Ne2 {[%emt 0:08:11]} Rxc1 {[%emt 0:03:37]} 22. Rxc1 {[%emt 0:06:53]} Bxd5 {[%emt 0:08:29]} 23. Nxd4 {[%emt 0:00:52]} exd4 {[%emt 0:06:47]} 24. Rd1 {[%emt 0:02:51]} Bxg2 {[%emt 0:01:15]} 25. Kxg2 {[%emt 0:00:17]} Qd5+ {[%emt 0:00:30]} 26. Kh2 {[%emt 0:01:42]} Qf3 {[%emt 0:06:23]} 27. Bxd4 {[%emt 0:06:07]} Rd8 {[%emt 0:01:20]} 28. Qb2 {[%emt 0:01:38]} Qxd1 {[%emt 0:01:31]} 29. Bxg7 {[%emt 0:00:05]} Rd2 {[%emt 0:01:27]} 30. Qf6 {[%emt 0:00:03]} Qf1 {[%emt 0:01:17]} 31. Qc3 {[%emt 0:01:07]} Rd4 {[%emt 0:00:30]} 0-1

[Event "MCC Labor Day Schev 2024"]
[Site "New York"]
[Date "2024.09.03"]
[Round "9.4"]
[White "Almeida Saenz, Alfonso"]
[Black "Mottola, Max"]
[Result "0-1"]
[ECO "E57"]
[WhiteElo "2202"]
[BlackElo "2103"]
[Annotator "RC"]
[PlyCount "80"]
[EventDate "2024.08.28"]
[EventType "schev"]
[EventCountry "USA"]
[SourceTitle "playchess.com"]
[Source "ChessBase"]
[SourceQuality "1"]
[TimeControl "5400+30"]

1. d4 {[%emt 0:04:01]} d5 {[%emt 0:00:06]} 2. c4 {[%emt 0:00:06]} e6 {[%emt 0:00:05]} 3. Nc3 {[%emt 0:00:09]} Nf6 {[%emt 0:00:06]} 4. Bg5 {[%emt 0:01:21]} dxc4 {[%emt 0:00:08]} 5. e3 {[%emt 0:00:10]} c5 {[%emt 0:00:21]} 6. Bxc4 {[%emt 0:00:07]} cxd4 {[%emt 0:00:06]} 7. exd4 {[%emt 0:00:07]} Be7 {[%emt 0:00:05]} 8. Nf3 {[%emt 0:01:17]} O-O {[%emt 0:00:10]} 9. O-O {[%emt 0:00:21]} Nc6 {[%emt 0:00:06]} 10. Re1 {[%emt 0:00:34]} a6 {[%emt 0:00:29]} 11. a3 {[%emt 0:00:52]} b5 {[%emt 0:00:47]} 12. Ba2 {[%emt 0:00:07]} Bb7 {[%emt 0:05:16]} 13. Rc1 {[%emt 0:00:32]} b4 {[%emt 0:03:45]} 14. axb4 {[%emt 0:00:11]} Nxb4 {[%emt 0:01:06]} 15. Bb1 {[%emt 0:00:07]} Nfd5 {[%emt 0:11:03]} 16. h4 {[%emt 0:00:37]} Rc8 {[%emt 0:05:12]} 17. Qd2 {[%emt 0:00:27]} Nxc3 {[%emt 0:06:29]} 18. bxc3 {[%emt 0:00:26]} Bxf3 {[%emt 0:02:23]} 19. gxf3 {[%emt 0:00:29]} Nd5 {[%emt 0:04:43]} 20. c4 {[%emt 0:00:16]} Nb6 {[%emt 0:10:58]} 21. Qd3 {[%emt 0:05:58]} g6 {[%emt 0:00:43]} 22. Bh6 {[%emt 0:00:07]} Re8 {[%emt 0:00:47]} 23. h5 {[%emt 0:00:06]} Bg5 {[%emt 0:02:28]} 24. hxg6 {[%emt 0:00:18]} hxg6 {[%emt 0:03:51]} 25. Bxg5 {[%emt 0:00:12]} Qxg5+ {[%emt 0:00:03]} 26. Kf1 {[%emt 0:00:07]} Nd5 {[%emt 0:04:34]} 27. f4 {[%emt 0:00:16]} Nxf4 {[%emt 0:04:17]} 28. Qf3 {[%emt 0:00:08]} Kg7 {[%emt 0:03:51]} 29. Re4 {[%emt 0:00:23]} Nd5 {[%emt 0:03:36]} 30. Rc2 {[%emt 0:02:41]} Nf6 {[%emt 0:01:37]} 31. Rf4 {[%emt 0:03:23]} e5 {[%emt 0:02:49]} 32. dxe5 {[%emt 0:01:14]} Qxe5 {[%emt 0:04:25]} 33. Rc1 {[%emt 0:00:59]} Rh8 {[%emt 0:04:51]} 34. Re1 {[%emt 0:05:35]} Rh1+ {[%emt 0:02:03]} 35. Qxh1 {[%emt 0:00:08]} Qxf4 {[%emt 0:00:04]} 36. Qh3 {[%emt 0:02:44]} Rh8 {[%emt 0:04:33]} 37. Qc3 {[%emt 0:00:22]} Rh2 {[%emt 0:01:05]} 38. Qg3 {[%emt 0:00:40]} Rh1+ {[%emt 0:00:44]} 39. Ke2 {[%emt 0:00:07]} Rxe1+ {[%emt 0:01:06]} 40. Kxe1 {[%emt 0:00:04]} Qc1+ {[%emt 0:00:08]} 0-1

[Event "MCC Labor Day Schev 2024"]
[Site "New York"]
[Date "2024.09.03"]
[Round "9.5"]
[White "Podavonov, Alisher"]
[Black "Hoffman, Luc"]
[Result "1/2-1/2"]
[ECO "B40"]
[WhiteElo "2140"]
[BlackElo "2067"]
[Annotator "NA RC"]
[PlyCount "99"]
[EventDate "2024.08.28"]
[EventType "schev"]
[EventCountry "USA"]
[SourceTitle "playchess.com"]
[Source "ChessBase"]
[SourceQuality "1"]
[TimeControl "5400+30"]

1. e4 {[%emt 0:00:01]} c5 {[%emt 0:00:33]} 2. Nf3 {[%emt 0:00:11]} e6 {[%emt 0:00:08]} 3. d3 {[%emt 0:00:04]} g6 {[%emt 0:01:25]} 4. d4 {[%emt 0:03:02]} cxd4 {[%emt 0:07:29]} 5. Qxd4 {[%emt 0:04:42]} Nf6 {[%emt 0:03:44]} 6. Bg5 {[%emt 0:08:57] B40: Sicilian: 2...e6, Unusual lines.} Be7 {[%emt 0:00:44]} 7. Nc3 {[%emt 0:12:50]} Nc6 {[%emt 0:00:45]} 8. Qd2 {[%emt 0:00:12]} d5 {[%emt 0:01:14]} 9. Bb5 {[%emt 0:06:25]} O-O {[%emt 0:03:56]} 10. Bxc6 {[%emt 0:02:41]} bxc6 {[%emt 0:00:32]} 11. e5 {[%emt 0:00:16]} Nd7 {[%emt 0:03:14]} 12. Bxe7 {[%emt 0:00:29]} Qxe7 {[%emt 0:00:14]} 13. O-O {[%emt 0:00:38]} Kg7 {[%emt 0:02:39]} 14. Rfe1 {[%emt 0:00:34]} Rb8 {[%emt 0:00:42]} 15. b3 {[%emt 0:00:56]} c5 {[%emt 0:02:35]} 16. Na4 {[%emt 0:05:55]} Bb7 {[%emt 0:01:13]} 17. c3 {[%emt 0:05:33]} a5 {[%emt 0:05:04]} 18. Qf4 {[%emt 0:03:20]} Bc6 {[%emt 0:01:32]} 19. Nb2 {[%emt 0:02:50]} c4 {[%emt 0:00:03]} 20. Nd4 {[%emt 0:00:42]} Ba8 {[%emt 0:00:05]} 21. Qd2 {[%emt 0:05:01]} cxb3 {[%emt 0:00:49]} 22. axb3 {[%emt 0:00:49]} Nc5 {[%emt 0:00:53]} 23. Qc2 {[%emt 0:00:45]} Qb7 {[%emt 0:02:50]} 24. Ra3 {[%emt 0:01:01]} Rfc8 {[%emt 0:00:44]} 25. f3 {[%emt 0:03:49]} Qc7 {[%emt 0:03:10]} 26. Re3 {[%emt 0:01:23]} Qb6 {[%emt 0:01:19]} 27. Na4 {[%emt 0:03:40]} Nxa4 $11 {[%emt 0:02:01]} 28. Rxa4 {[%emt 0:00:12]} Bc6 {[%emt 0:00:08]} 29. Ra2 {[%emt 0:01:05]} Bd7 {[%emt 0:00:45]} 30. f4 {[%emt 0:03:17]} Rc7 {[%emt 0:01:08]} 31. Qd2 {[%emt 0:01:48]} Ra7 {[%emt 0:04:55]} 32. Ra3 {[%emt 0:08:42]} Qc5 {[%emt 0:02:04]} 33. Qa2 {[%emt 0:00:18]} a4 {[%emt 0:01:08]} 34. bxa4 {[%emt 0:05:34]} Rba8 {[%emt 0:00:36]} 35. Qb2 {[%emt 0:00:40]} Rxa4 {[%emt 0:00:52]} 36. Rxa4 {[%emt 0:00:05]} Rxa4 {[%emt 0:00:07]} 37. Kf2 {[%emt 0:05:33]} Qc4 {[%emt 0:01:11]} 38. Kg3 {[%emt 0:00:18]} Qf1 {[%emt 0:02:46]} 39. Qf2 {[%emt 0:01:50]} Qb1 {[%emt 0:00:29]} 40. Re2 {[%emt 0:01:04]} Ra3 {[%emt 0:02:47]} 41. Qe3 {[%emt 0:00:40]} Bb5 {[%emt 0:00:57]} 42. Re1 {[%emt 0:01:11]} Qb2 {[%emt 0:00:57]} 43. Rc1 {[%emt 0:00:03]} Bd3 {[%emt 0:00:25]} 44. Nf3 {[%emt 0:01:36]} Rxc3 {[%emt 0:04:58]} 45. Rxc3 {[%emt 0:00:11]} Qxc3 {[%emt 0:00:02]} 46. Qd2 {[%emt 0:01:32]} Qc4 {[%emt 0:09:55]} 47. Qa5 {[%emt 0:00:50]} Qc8 {[%emt 0:01:32]} 48. Qb4 {[%emt 0:00:09]} Be4 {[%emt 0:01:04]} 49. Ng5 {[%emt 0:00:48]} Qc2 {[%emt 0:01:03]} 50. Nxe6+ {[%emt 0:00:08]} 1/2-1/2

[Event "MCC Labor Day Schev 2024"]
[Site "New York"]
[Date "2024.09.02"]
[Round "9.6"]
[White "Patel, Maahir M"]
[Black "Martin Del Campo Cardenas, Roberto Abel"]
[Result "0-1"]
[ECO "B32"]
[WhiteElo "2005"]
[BlackElo "2216"]
[Annotator "TA"]
[PlyCount "94"]
[EventDate "2024.08.28"]
[EventType "schev"]
[EventCountry "USA"]
[SourceTitle "playchess.com"]
[Source "ChessBase"]
[SourceQuality "1"]
[TimeControl "5400+30"]

{[%evp 17,94,16,14,14,11,11,34,14,17,12,9,0,19,-8,0,0,0,-12,-6,-24,-4,-14,2,-11,-4,-9,-9,-10,0,0,0,0,17,17,26,0,0,0,0,-43,-9,-112,-123,-97,-105,-112,-97,-154,-150,-154,-141,-245,-236,-263,-266,-248,-101,-255,-245,-295,-335,-514,-507,-881,-539,-757,-539,-2391,-2555,-29978,-1121,-1121,-1121,-1111,-1099,-998,-859,-2837,-1771]} 1. e4 {[%emt 0:00:46]} c5 {[%emt 0:01:53]} 2. Nf3 {[%emt 0:00:09][%cal Bg1f3,Bf3d4,Bd4b5,Bb5a3,Ba3c2,Bc2e3][%mdl 32]} Nc6 {[%emt 0:00:31]} 3. d4 {[%emt 0:00:52]} cxd4 {[%emt 0:00:05]} 4. Nxd4 {[%emt 0:00:04]} e5 {[%emt 0:00:07]} 5. Nb5 {[%emt 0:00:06]} d6 {[%emt 0:00:04]} 6. c4 {[%emt 0:00:06]} Be7 {[%emt 0:00:25]} 7. N1c3 {[%emt 0:01:05]} a6 {[%emt 0:00:12]} 8. Na3 {[%emt 0:00:17]} Be6 {[%emt 0:00:13]} 9. Be3 {[%emt 0:00:38]} Bg5 {[%emt 0:00:44]} 10. Bxg5 {[%emt 0:03:32]} Qxg5 {[%emt 0:00:14]} 11. Nc2 {[%emt 0:00:06][%cal Oh2h4]} Nge7 {[%emt 1:31:32]} 12. Qd2 {[%emt 0:03:54] White is slightly better.} (12. Qxd6 $2 Rd8 $19) 12... Qxd2+ {[%emt 0:00:00]} 13. Kxd2 {[%emt 0:00:07]} f5 {[%emt 0:00:00]} 14. f3 {[%emt 0:03:12]} O-O {[%emt 0:00:00]} 15. Ne3 {[%emt 0:03:49]} Rac8 {[%emt 0:00:00]} 16. Bd3 {[%emt 0:03:16]} g6 {[%emt 0:00:00]} 17. Rhf1 {[%emt 0:00:41]} Nd4 {[%emt 0:00:00]} 18. b3 {[%emt 0:05:04]} Kg7 {[%emt 0:00:00]} 19. Ned5 {[%emt 0:06:55]} Nxd5 {[%emt 0:00:00]} 20. cxd5 {[%emt 0:01:37]} (20. exd5 {simplifies} Bd7 21. f4 Rfe8 22. Rac1) 20... Bd7 {[%emt 0:00:00]} 21. Ne2 {[%emt 0:00:51]} (21. Rac1 {is interesting.} Kf6 22. f4 Nb5 23. Nxb5 axb5 24. exf5 Rxc1 25. fxe5+ Kxe5 26. Rxc1 Bxf5 27. Bxb5 Be4 28. Rc7) 21... Nxe2 {[%emt 0:00:00]} 22. Bxe2 {[%emt 0:01:34]} fxe4 {[%emt 0:00:00]} 23. fxe4 {[%emt 0:00:08]} Rf4 {[%emt 0:00:00]} 24. Bd3 {[%emt 0:01:39]} Rcf8 {[%emt 0:00:00]} 25. Rxf4 {[%emt 0:01:02]} exf4 $11 {[%emt 0:00:00][%mdl 4096] Endgame. KRB-KRB} 26. Rc1 {[%emt 0:01:44]} Rc8 {[%emt 0:00:00] Prevents Rc7. And now ...Rxc1 would win.} 27. Rf1 {[%emt 0:00:32]} g5 {[%emt 0:00:00]} 28. g3 {[%emt 0:00:09]} Bh3 {[%emt 0:00:00]} 29. Rf2 {[%emt 0:02:11]} (29. Rf3 $11 fxg3 30. hxg3) 29... Rf8 $17 {[%emt 0:00:00]} 30. gxf4 {[%emt 0:03:03]} Rxf4 {[%emt 0:00:00]} 31. Re2 {[%emt 0:02:28]} Bg4 {[%emt 0:00:00]} 32. Rg2 {[%emt 0:01:01]} (32. Re1 $142) 32... Kf6 {[%emt 0:00:05]} 33. Ke3 {[%emt 0:01:38]} Ke5 {[%emt 0:05:25]} 34. Rg3 {[%emt 0:00:21] [#]} (34. h3 $17 Rf3+ (34... Bxh3 $2 {too greedy.} 35. Rxg5+ $18) 35. Kd2 Bxh3 (35... Kd4 $2 36. Be2 $18) 36. Rxg5+ Kd4 37. Bc2) 34... h6 $1 $19 {[%emt 0:00:21]} 35. a4 {[%emt 0:01:49]} Bd1 {[%emt 0:00:23]} 36. a5 {[%emt 0:00:46]} Bxb3 {[%emt 0:00:24]} (36... Rh4 $19 {has better winning chances.} 37. h3 Bh5 (37... Bxb3 $2 38. Kd2 $19)) 37. Rh3 {[%emt 0:00:06] This move loses the game for White.} (37. Rg1 $17 Ba4 (37... Rh4 38. Rb1 $15) 38. Rb1) 37... Rf6 {[%emt 0:00:21]} 38. Rg3 {[%emt 0:00:37][%cal Oh2h4] [#]} Bd1 $1 {[%emt 0:01:03]} 39. h4 {[%emt 0:01:03]} (39. Kd2 {was worth a try.} Bh5 40. Rh3) 39... gxh4 {[%emt 0:01:54]} 40. Rg7 {[%emt 0:00:53]} (40. Rg1 $142 Bh5 (40... Rf3+ $2 41. Kd2 $19) 41. Be2) 40... Rf3+ {[%emt 0:00:25]} 41. Kd2 {[%emt 0:00:05]} Kd4 {[%emt 0:00:31]} 42. Bb1 {[%emt 0:00:03] [#]} h3 $1 {[%emt 0:00:27]} 43. Rg1 {[%emt 0:00:55]} (43. e5 Rf1) 43... h2 {[%emt 0:01:18]} (43... Rf2+ $142 44. Kxd1 h2 45. Rh1 Rg2 46. Rxh2 Rxh2 47. Bc2 Rxc2 48. Kxc2 Kxe4 49. Kd2 Kxd5 50. Ke3 Ke5 51. Kf3 d5 52. Kg4 d4 53. Kg3 h5 54. Kg2 h4 55. Kf3 h3 56. Kg3 d3 57. Kf3 h2 58. Ke3 h1=Q (58... h1=R {leads to mate.} 59. Kxd3 Rh3+ 60. Ke2 Kd4 61. Kf2 Ke4 62. Ke2 Rh2+ 63. Ke1 Kd3 64. Kf1 Ke3 65. Kg1 Rf2 66. Kh1 Kf3 67. Kg1 Kg3 68. Kh1 Rf1#) 59. Kxd3 Qc1 60. Ke2 Kf4 61. Kd3 Qb2 62. Kc4 Ke4 63. Kc5 Qd4#) 44. Rxd1 {[%emt 0:00:09] Black is clearly winning.} Rf2+ {[%emt 0:00:37]} 45. Ke1+ {[%emt 0:03:31]} Ke3 {[%emt 0:00:07][%cal Rh2h1]} 46. Rd3+ {[%emt 0:00:04]} Kf4 $1 {[%emt 0:00:04] ( -> ...Rf3)} 47. Rh3 {[%emt 0:00:42]} Rg2 {[%emt 0:00:08] Weighted Error Value: White=0.77/Black=0.27 (precise) .  Mistake:       	White=6     	Black=1      Inaccurate:     	White=6     	Black=1      OK:         	White=9     	Black=10     Best:        	---       	Black=4      Strong:       	---       	Black=2} 0-1